bitfinex/quotes_ETHUSD_20260304
["timestamp","ask_amount","ask_price","bid_price","bid_amount"]
[1772614901018,7.40185932,2062.1,2061.4,1.536]
[1772614901184,6.18950084,2062.1,2061.5,1.535]
[1772614901387,6.18950084,2062.1,2061.6,1.535]
[1772614901587,0.3261111,2062.2,2061.6,1.535]
[1772614902312,0.3261111,2062.2,2061.1,0.62099831]
[1772614902504,7.72791634,2062.2,2061.2,1.95969543]
[1772614902821,6.51561194,2062.2,2061.4,1.21276802]
[1772614903186,7.72791275,2062.2,2061.3,1.21278838]
[1772614903492,6.51561194,2062.2,2061.3,1.21278838]
[1772614903716,7.7279112,2062.2,2061.3,1.21278838]
[1772614903904,6.51561194,2062.2,2061.3,1.21278838]
[1772614904103,7.72791555,2062.2,2061.3,1.21278838]
[1772614904411,0.3261111,2062.2,2061.3,1.83378669]
[1772614904616,6.18950084,2062.6,2061.4,0.42501091]
[1772614904914,0.002,2062.7,2061.6,1.21265036]
[1772614905117,6.35255639,2062.6,2061.6,1.21265036]
[1772614905289,6.35455639,2062.7,2061.6,1.21265036]
[1772614905821,6.35455639,2062.7,2061.7,1.529]
[1772614906002,6.35455639,2062.7,2061.6,1.21265036]
[1772614906207,0.002,2062.7,2061.7,1.529]
[1772614906382,0.002,2062.0,2061.7,1.529]
[1772614906581,0.002,2062.7,2061.7,1.529]
[1772614906785,0.002,2062.2,2061.8,1.21253273]
[1772614907017,0.002,2062.7,2061.8,1.21253273]
[1772614907309,0.002,2062.5,2061.9,1.527]
[1772614908690,0.002,2062.5,2061.8,1.21253273]
[1772614908886,0.002,2062.5,2061.9,1.525]
[1772614909095,0.002,2062.5,2062.0,1.525]
[1772614909389,6.35255639,2062.6,2062.0,0.94600824]
[1772614909591,6.35255639,2062.6,2061.5,2.7367011]
[1772614910115,7.56438382,2063.0,2061.5,3.03158831]
[1772614911431,4.84930974,2063.2,2061.7,0.29488721]
[1772614911432,1.21376132,2063.2,2061.7,0.29488721]
[1772614911593,7.56631771,2063.2,2061.7,0.36042321]
[1772614912815,7.56631771,2063.2,2061.8,0.42224148]
[1772614913017,7.56631771,2063.2,2061.7,0.36042321]
[1772614913318,7.56631771,2063.2,2061.9,1.21247393]
[1772614914042,6.35255639,2062.9,2061.9,1.21247393]
[1772614914217,6.35255639,2062.9,2062.0,1.518]
[1772614914390,6.35255639,2062.9,2061.9,1.518]
[1772614914990,6.35255639,2062.9,2061.4,4.85105368]
[1772614915185,6.35255639,2062.9,2061.9,1.517]
[1772614915390,6.35255639,2062.7,2062.0,1.517]
[1772614916196,6.35255639,2062.7,2061.5,0.29488721]
[1772614916522,6.35255639,2062.7,2062.1,1.516]
[1772614916888,1.21192934,2062.9,2062.1,1.516]
[1772614917504,6.35255639,2062.9,2062.2,1.515]
[1772614917703,6.35255639,2062.9,2061.6,1.21265036]
[1772614918027,6.35255639,2062.9,2061.7,1.93759024]
[1772614918231,6.35255639,2062.9,2061.7,1.515]
[1772614918423,6.35255639,2062.9,2061.8,0.42290406]
[1772614918717,6.35255639,2062.9,2061.8,0.29488721]
[1772614918921,1.21180723,2063.1,2061.9,1.514]
[1772614919104,7.56436362,2063.1,2062.0,0.42279778]
[1772614919307,7.56436362,2063.1,2062.1,0.42323886]
[1772614919513,7.56436362,2063.1,2062.2,1.21229754]
[1772614919695,0.002,2062.9,2062.2,1.21229754]
[1772614920025,6.35555639,2062.9,2062.0,4.84952479]
[1772614920330,6.35355639,2062.7,2061.7,0.001]
[1772614920500,6.35355639,2062.7,2061.7,1.513]
[1772614920823,6.35355639,2062.7,2061.7,2.72558415]
[1772614921129,0.002,2062.9,2061.7,0.001]
[1772614921130,6.35355639,2062.1,2061.7,0.001]
[1772614921324,6.35355639,2061.6,2061.5,0.001]
[1772614921494,6.35355639,2061.5,2060.7,1.512]
[1772614921702,6.35355639,2061.5,2060.8,0.42560094]
[1772614922003,6.35355639,2061.5,2060.7,1.512]
[1772614922203,0.001,2061.7,2060.8,0.42555138]
[1772614922521,7.56580058,2062.3,2060.9,0.42555138]
[1772614922720,6.35355639,2062.1,2061.0,1.511]
[1772614922909,6.35355639,2062.1,2060.7,2.17190602]
[1772614922910,6.35355639,2062.1,2061.1,0.42555138]
[1772614923095,6.35355639,2062.1,2061.2,1.93655138]
[1772614923290,6.35355639,2062.1,2061.3,1.93555138]
[1772614923489,6.35355639,2062.1,2061.5,1.21270919]
[1772614924126,7.56591923,2062.1,2061.1,1.21294454]
[1772614924425,7.56591923,2062.1,2061.1,2.72294454]
[1772614924426,6.35355639,2062.0,2061.1,2.72294454]
[1772614924745,6.35355639,2061.8,2061.0,1.509]
[1772614924914,6.35355639,2061.8,2060.5,2.17190602]
[1772614925104,6.35355639,2061.8,2060.7,1.509]
[1772614925300,6.35355639,2061.8,2060.5,1.21329637]
[1772614925528,6.35355639,2061.8,2060.6,1.509]
[1772614925803,6.35355639,2061.8,2060.4,4.85419097]
[1772614925804,6.35355639,2061.6,2060.7,2.72217998]
[1772614926734,6.35355639,2062.1,2061.2,2.17190602]
[1772614926906,4.84727039,2063.1,2061.2,2.17190602]
[1772614926907,6.35355639,2062.5,2061.2,2.17190602]
[1772614927107,6.35355639,2062.5,2061.3,2.17190602]
[1772614927307,7.56553811,2062.8,2061.5,2.17190602]
[1772614927540,7.56553451,2062.8,2061.6,3.67990602]
[1772614927837,7.56553451,2062.8,2061.7,3.38449757]
[1772614928132,7.56553451,2062.8,2061.8,1.508]
[1772614928310,7.56550555,2062.8,2061.8,1.508]
[1772614928513,7.56550147,2062.8,2061.8,3.67990602]
[1772614929028,7.56551838,2062.8,2061.8,2.17190602]
[1772614929209,7.56551838,2062.8,2061.9,1.507]
[1772614929633,7.56551838,2062.8,2061.9,1.21247393]
[1772614929930,7.56551838,2062.8,2061.7,1.21258363]
[1772614930131,7.56551838,2062.8,2061.6,2.17190602]
[1772614930445,7.56551838,2062.8,2061.7,1.506]
[1772614931113,7.56551838,2062.8,2061.8,1.506]
[1772614931752,6.35355639,2062.5,2061.4,2.17190602]
[1772614931904,6.35355639,2062.2,2061.2,4.8917789]
[1772614932103,7.48163496,2062.2,2061.2,0.001]
[1772614932518,7.48163496,2062.2,2061.0,0.001]
[1772614932847,6.35305639,2061.7,2061.0,0.001]
[1772614933831,6.35305639,2061.5,2061.0,0.001]
[1772614934635,6.35305639,2061.5,2060.7,0.001]
[1772614934636,6.35305639,2061.2,2060.7,0.001]
[1772614935633,7.48113496,2061.2,2060.4,0.001]
[1772614935827,6.35305639,2061.0,2060.4,0.001]
[1772614936322,7.48113496,2061.0,2060.4,0.001]
[1772614936835,6.35305639,2060.6,2060.1,0.001]
[1772614938033,6.35305639,2060.4,2060.1,0.001]
[1772614938253,1.21329774,2060.5,2060.1,0.001]
[1772614938254,7.56635413,2060.5,2060.1,0.001]
[1772614938491,6.35305639,2060.5,2060.1,0.001]
[1772614938622,6.35305639,2060.9,2059.9,0.001]
[1772614938932,6.35355639,2060.1,2059.9,0.001]
[1772614939512,6.35355639,2060.1,2059.5,0.001]
[1772614939840,6.35255639,2059.9,2059.5,0.001]
[1772614940822,6.35255639,2059.9,2059.3,0.001]
[1772614941953,7.5662117,2059.9,2059.3,0.001]
[1772614944925,7.5662117,2059.9,2059.0,0.69513427]
[1772614944926,6.35205639,2059.7,2059.0,0.69513427]
[1772614945445,6.35205639,2059.7,2059.5,0.001]
[1772614945623,6.35205639,2059.7,2059.0,0.69513427]
[1772614945824,6.35205639,2059.5,2059.3,0.001]
[1772614946141,6.35205639,2059.5,2059.0,1e-08]
[1772614946371,9.58781747,2059.5,2057.4,3.69237731]
[1772614946521,6.35205639,2059.4,2057.5,6.78338521]
[1772614946723,6.35205639,2059.1,2057.4,1.499]
[1772614947446,6.35205639,2059.1,2057.3,1.21514235]
[1772614947743,6.35205639,2059.1,2057.5,1.498]
[1772614948145,6.35205639,2058.9,2057.5,1.498]
[1772614948345,6.35205639,2058.9,2057.5,2.71306186]
[1772614948828,1.21416437,2059.1,2057.6,0.36142321]
[1772614949031,7.56609977,2059.3,2057.6,0.29588721]
[1772614950143,7.56609977,2059.3,2057.7,2.71194872]
[1772614950343,7.56609977,2059.3,2057.8,1.497]
[1772614950554,7.56609977,2059.3,2057.7,1.21494872]
[1772614950755,7.56609977,2059.3,2057.8,1.497]
[1772614951256,7.56609977,2059.3,2057.4,1.21512588]
[1772614951456,6.35205639,2059.2,2057.5,1.496]
[1772614951856,6.35205639,2059.2,2057.4,1.21512588]
[1772614952054,6.35205639,2058.3,2057.2,1.54072645]
[1772614952561,6.35205639,2058.3,2057.2,1.54073414]
[1772614953429,1.21444535,2058.6,2057.3,1.79088721]
[1772614953828,7.56650174,2058.6,2057.3,1.79088721]
[1772614954029,7.56650174,2058.6,2057.4,1.21512588]
[1772614954383,7.56650174,2058.6,2057.4,2.71012588]
[1772614954657,6.35205639,2058.4,2056.5,0.29588721]
[1772614954964,6.35205639,2058.4,2057.1,1.494]
[1772614955283,6.35205639,2058.4,2057.2,1.494]
[1772614955429,6.35205639,2058.4,2057.1,1.494]
[1772614955864,6.35205639,2058.4,2056.7,0.29588721]
[1772614956056,6.35205639,2058.4,2056.8,1.494]
[1772614956358,6.35205639,2058.4,2056.4,4.86261452]
[1772614956359,7.93481747,2058.2,2056.4,1.21571678]
[1772614956578,6.35205639,2058.2,2056.5,0.29588721]
[1772614957066,6.35205639,2058.2,2056.6,1.493]
[1772614957743,6.35205639,2058.2,2057.3,0.001]
[1772614958259,7.56673857,2058.2,2057.3,0.001]
[1772614958587,7.56647395,2058.6,2057.3,0.001]
[1772614959089,6.35205639,2058.5,2057.3,0.001]
[1772614960266,6.35205639,2058.3,2057.3,0.001]
[1772614962273,6.35205639,2058.1,2057.3,0.001]
[1772614962472,6.35205639,2058.1,2057.0,0.001]
[1772614964284,6.35155639,2057.9,2057.1,1.489]
[1772614964473,6.35155639,2057.9,2057.0,1.49]
[1772614964669,6.35155639,2057.9,2057.0,0.001]
[1772614964896,6.35155639,2057.8,2057.0,1.49]
[1772614965466,6.35155639,2057.8,2057.0,0.001]
[1772614965671,6.35155639,2057.8,2057.0,1.489]
[1772614966366,7.56649905,2057.8,2057.1,1.21530309]
[1772614967592,7.56649905,2057.8,2057.0,1.489]
[1772614967593,7.56649905,2057.8,2057.0,0.001]
[1772614967774,7.56649905,2057.8,2057.0,2.70334801]
[1772614967980,7.56649905,2057.8,2057.0,1.488]
[1772614968292,7.56649905,2057.8,2057.0,1.487]
[1772614968893,7.56649905,2057.8,2057.0,0.001]
[1772614969814,1.21494266,2057.8,2057.0,0.001]
[1772614969980,1.21471259,2058.1,2057.0,6.37212388]
[1772614970175,1.21471259,2058.1,2057.1,1.485]
[1772614970380,1.21471259,2058.1,2057.2,1.21524402]
[1772614970577,7.23928838,2058.1,2057.3,1.485]
[1772614970808,7.23928838,2058.1,2057.0,1.21631578]
[1772614971174,7.23928838,2058.1,2057.2,0.001]
[1772614971585,7.23928838,2058.1,2057.3,1.484]
[1772614972076,7.23928838,2058.1,2057.2,0.001]
[1772614972274,7.23828838,2058.1,2057.3,1.484]
[1772614972600,4.85885039,2058.4,2057.4,8.01413857]
[1772614972601,1.21453556,2058.4,2057.4,8.01413857]
[1772614972775,1.21453556,2058.4,2057.5,1.484]
[1772614972971,1.21453556,2058.4,2057.3,1.21516301]
[1772614973183,7.23911135,2058.4,2057.4,0.42789326]
[1772614973383,7.23911135,2058.4,2057.2,1.21620683]
[1772614973612,7.23911135,2058.4,2057.3,1.91134541]
[1772614973816,7.23911135,2058.4,2057.4,0.42834541]
[1772614974020,1.21453556,2058.4,2057.5,6.79946929]
[1772614974237,1.2163437,2058.8,2057.6,6.79946929]
[1772614974526,0.002,2058.8,2057.9,1.21483065]
[1772614974723,0.002,2058.8,2058.0,0.42834541]
[1772614976225,0.002,2058.8,2058.1,1.482]
[1772614976395,0.002,2058.8,2058.2,0.42834541]
[1772614976596,0.002,2058.8,2058.3,1.21459456]
[1772614977020,0.002,2058.8,2058.4,1.482]
[1772614977200,0.002,2058.8,2058.0,1.21477162]
[1772614977407,6.02657579,2058.8,2058.1,1.91020991]
[1772614977617,6.02657579,2058.8,2057.9,1.481]
[1772614978420,6.02657579,2058.8,2058.0,0.42924852]
[1772614978725,1.21435857,2058.7,2058.1,0.42915394]
[1772614978892,1.21435857,2058.7,2058.0,1.21477162]
[1772614979097,1.21435857,2058.7,2058.1,1.481]
[1772614979300,1.21435857,2058.7,2058.2,0.42907188]
[1772614979499,1.21435857,2058.7,2058.0,1.481]
[1772614979717,1.21435857,2058.7,2058.1,0.4290731]
[1772614979921,1.21435857,2058.7,2058.2,0.4290731]
[1772614980120,1.21435857,2058.7,2058.0,1.48]
[1772614980336,0.002,2058.8,2058.1,1.90938993]
[1772614980504,0.002,2058.8,2058.2,0.42938993]
[1772614980713,0.002,2058.8,2058.4,1.21453556]
[1772614980897,0.002,2058.8,2058.5,0.42938993]
[1772614981102,0.002,2058.8,2058.1,1.48]
[1772614981303,6.02457579,2058.7,2057.8,2.18142328]
[1772614981649,6.02457579,2058.7,2057.9,0.42922829]
[1772614981803,6.02457579,2058.7,2057.7,1.48]
[1772614982003,0.002,2058.8,2057.8,1.48]
[1772614982442,0.002,2058.8,2057.8,7.85112388]
[1772614982735,0.002,2058.6,2057.9,8.55254716]
[1772614982925,0.002,2058.6,2058.0,1.21477162]
[1772614983631,0.002,2058.6,2058.0,7.5858955]
[1772614984230,0.002,2058.6,2058.1,1.479]
[1772614984720,0.002,2058.6,2057.8,2.18142328]
[1772614984923,0.002,2058.6,2057.8,1.21484362]
[1772614985126,0.002,2058.6,2057.9,7.85012388]
[1772614985613,0.002,2058.6,2058.0,7.85012388]
[1772614986216,0.002,2059.1,2058.0,7.85012388]
[1772614986217,0.002,2059.1,2058.3,6.37112388]
[1772614986906,0.002,2059.1,2058.4,7.58565944]
[1772614987109,0.002,2059.3,2058.4,9.76708272]
[1772614987315,0.002,2059.3,2058.4,7.58565944]
[1772614987844,0.002,2059.3,2058.5,1.479]
[1772614988237,0.002,2059.3,2058.6,1.479]
[1772614988437,0.002,2059.3,2058.4,1.21453556]
[1772614988622,0.002,2059.3,2058.5,1.479]
[1772614989145,0.002,2059.3,2058.6,1.21441756]
[1772614989323,0.002,2059.3,2058.6,7.58554144]
[1772614990128,0.002,2059.3,2058.7,1.479]
[1772614990348,0.002,2059.3,2058.8,1.479]
[1772614990747,0.002,2060.4,2058.9,6.37112388]
[1772614990935,1.15497235,2060.4,2059.5,6.37312388]
[1772614991116,1.15497235,2060.4,2059.3,0.001]
[1772614991117,10.87799147,2060.5,2059.3,0.001]
[1772614991321,10.87799147,2060.5,2059.4,1.479]
[1772614991726,6.02457579,2060.4,2059.5,1.479]
[1772614991935,6.02457579,2060.4,2059.6,1.479]
[1772614992144,6.02457579,2060.4,2059.3,0.001]
[1772614992459,6.02457579,2060.4,2059.4,1.479]
[1772614993026,6.02457579,2060.4,2059.2,1.21406371]
[1772614993331,1.21341552,2060.3,2059.5,1.21384228]
[1772614993559,1.21340214,2060.4,2059.5,1.21384228]
[1772614994656,1.21340214,2060.4,2059.0,6.37112388]
[1772614994657,7.23797793,2060.4,2059.0,6.37112388]
[1772614994951,7.23797793,2060.4,2059.1,1.48]
[1772614995255,7.23797793,2060.4,2058.9,4.85672656]
[1772614995256,6.02457579,2060.0,2059.2,2.69405819]
[1772614995422,6.02457579,2060.0,2059.3,1.48]
[1772614995824,6.02457579,2060.0,2059.4,1.48]
[1772614996210,6.02457579,2060.0,2059.1,1.48]
[1772614996505,1.21353332,2060.1,2058.4,4.85913954]
[1772614996506,6.02457579,2059.6,2058.4,0.001]
[1772614996654,6.02457579,2059.6,2058.4,1.21553346]
[1772614996956,6.02457579,2059.3,2058.4,0.001]
[1772614997157,1.21406371,2059.2,2058.4,0.001]
[1772614997369,1.21406371,2059.2,2058.5,1.479]
[1772614997596,6.02457579,2059.7,2058.5,1.479]
[1772614997779,7.23840371,2059.6,2058.4,0.001]
[1772614997962,7.23840371,2059.6,2058.6,1.479]
[1772614998380,7.23840371,2059.6,2058.4,0.001]
[1772614999063,6.20547849,2059.3,2058.4,0.001]
[1772614999259,6.20547849,2059.1,2058.4,0.001]
[1772614999661,6.20547849,2059.1,2058.4,1.48]
[1772615000081,6.20547849,2059.1,2058.4,0.001]
[1772615000281,6.20547849,2059.1,2058.4,1.48]
[1772615000681,6.20547849,2059.1,2058.4,0.001]
[1772615001295,1.21418164,2059.0,2058.4,1.48]
[1772615002398,7.51637837,2059.0,2058.4,0.001]
[1772615003489,6.30219673,2058.8,2058.1,0.001]
[1772615004006,1.21418164,2059.0,2058.1,1.21569095]
[1772615004202,7.51637837,2059.0,2058.1,1.21569095]
[1772615004405,7.51637837,2059.0,2058.1,0.001]
[1772615004603,7.51637837,2059.0,2058.1,1.21570859]
[1772615004773,7.51637837,2059.0,2058.1,2.69370859]
[1772615005294,7.51637837,2059.0,2058.2,2.6926285]
[1772615005497,7.51637837,2059.0,2058.2,1.478]
[1772615006288,7.51637837,2059.0,2058.2,1.477]
[1772615006908,7.51637837,2059.0,2058.1,1.21570708]
[1772615007210,7.51637837,2059.0,2058.2,1.477]
[1772615007905,7.51637837,2059.0,2058.1,1.478]
[1772615008109,7.51637837,2059.0,2058.1,2.6927028]
[1772615008409,7.51637837,2059.0,2058.1,0.001]
[1772615008977,6.30219673,2058.3,2057.9,0.001]
[1772615009575,1.21465358,2058.2,2057.9,0.001]
[1772615009779,1.21447656,2058.5,2057.9,0.001]
[1772615010278,1.21447656,2058.5,2057.9,1.477]
[1772615010476,1.21447656,2058.5,2057.9,0.001]
[1772615011396,4.8574118,2058.8,2057.9,0.001]
[1772615011595,1.21429959,2058.8,2058.1,1.21471259]
[1772615011979,6.30219673,2058.7,2057.9,0.001]
[1772615012180,1.21429959,2058.8,2058.0,0.42764238]
[1772615012376,1.21429959,2058.8,2057.9,1.21582284]
[1772615012377,7.51649632,2058.8,2057.9,1.21582284]
[1772615012719,7.51649632,2058.8,2057.9,0.001]
[1772615012911,6.30219673,2058.7,2057.9,0.001]
[1772615013786,1.21441756,2058.6,2057.8,1.21488968]
[1772615014421,7.51661429,2058.6,2057.6,1.474]
[1772615014625,7.51661429,2058.6,2057.7,0.42786653]
[1772615014917,7.51661429,2058.6,2057.5,2.68906682]
[1772615015113,7.51661429,2058.6,2057.6,0.42786067]
[1772615015323,7.51661429,2058.6,2057.7,0.42786067]
[1772615015484,7.51661429,2058.6,2057.5,2.68906682]
[1772615015685,7.51661429,2058.6,2057.6,0.42781878]
[1772615015982,6.30219673,2058.3,2057.4,1.474]
[1772615016387,6.30219673,2058.3,2057.3,1.473]
[1772615016588,6.30219673,2058.3,2057.4,0.42798681]
[1772615016810,6.30219673,2058.3,2057.4,1.473]
[1772615017008,6.30219673,2058.3,2057.2,0.001]
[1772615017220,6.30219673,2058.3,2057.3,1.90110187]
[1772615017422,6.30219673,2058.3,2057.2,1.21623008]
[1772615017627,6.30219673,2058.0,2057.2,0.001]
[1772615017841,7.51702738,2057.9,2057.2,0.001]
[1772615019286,7.51702738,2057.9,2057.0,0.001]
[1772615020231,6.30219673,2057.7,2057.0,0.001]
[1772615021483,1.21483065,2057.9,2057.4,0.001]
[1772615021683,7.51702738,2057.9,2057.4,0.001]
[1772615024519,1.21483065,2057.9,2057.4,0.001]
[1772615024766,4.8586158,2058.2,2057.4,0.001]
[1772615024767,1.21465358,2058.2,2057.4,5.92332324]
[1772615025232,1.2165682,2058.4,2057.5,7.39132324]
[1772615025633,0.002,2058.4,2057.5,7.39132324]
[1772615025833,0.002,2058.4,2057.7,5.92232324]
[1772615026154,0.002,2058.4,2057.8,0.42768972]
[1772615026440,0.002,2058.4,2057.9,0.42768972]
[1772615026626,0.002,2058.4,2058.0,1.21477162]
[1772615028407,0.002,2058.4,2057.8,4.8595046]
[1772615028608,0.002,2058.4,2057.5,6.32904361]
[1772615028609,0.002,2058.4,2057.9,1.64311221]
[1772615028828,0.002,2058.4,2057.9,1.21482622]
[1772615029707,0.002,2058.4,2057.5,6.44402357]
[1772615029901,0.002,2058.4,2057.6,0.42911772]
[1772615030131,0.002,2058.4,2057.5,6.44402357]
[1772615030333,0.002,2058.4,2057.6,6.87332081]
[1772615030538,0.002,2058.6,2057.8,6.44402357]
[1772615030835,0.002,2058.9,2058.0,6.44402357]
[1772615031412,0.002,2058.9,2058.1,1.466]
[1772615031942,0.002,2058.9,2058.0,1.466]
[1772615031943,6.42114406,2058.9,2058.0,1.466]
[1772615032110,6.42114406,2058.9,2057.9,1.21483065]
[1772615032605,6.42114406,2058.9,2058.0,1.466]
[1772615032808,0.002,2058.9,2058.1,1.21471259]
[1772615033143,1.21624855,2058.9,2058.2,1.466]
[1772615033510,1.21624855,2058.9,2058.1,1.21471259]
[1772615033833,1.21624855,2058.9,2058.2,1.465]
[1772615033834,0.002,2058.9,2058.2,1.465]
[1772615034207,0.002,2058.9,2058.2,7.90902357]
[1772615034414,0.502,2059.1,2058.3,6.87278207]
[1772615034614,0.502,2059.1,2058.3,6.44402357]
[1772615034813,1.71612495,2059.1,2058.4,1.21453556]
[1772615035132,0.002,2058.7,2058.4,1.21453556]
[1772615035537,0.002,2058.9,2058.4,1.21453556]
[1772615035538,0.002,2058.9,2058.7,0.001]
[1772615035715,0.002,2059.2,2058.7,0.001]
[1772615036447,0.002,2059.2,2058.8,1.465]
[1772615036743,0.002,2059.2,2058.9,1.21424061]
[1772615037257,0.002,2059.2,2058.9,1.465]
[1772615037637,0.001,2059.2,2058.6,1.21439161]
[1772615037838,0.001,2059.2,2058.7,1.89289268]
[1772615038138,0.001,2059.2,2058.5,1.465]
[1772615038342,6.42014406,2059.2,2058.3,1.21459456]
[1772615038674,6.42014406,2059.2,2058.4,1.89274883]
[1772615038868,1.21412267,2059.1,2058.4,1.465]
[1772615039165,1.21412267,2059.1,2058.3,1.21455951]
[1772615039335,1.21412267,2059.1,2058.2,1.465]
[1772615039722,2.34622868,2059.1,2058.2,1.465]
[1772615039931,6.41914406,2059.0,2058.1,1.465]
[1772615040465,6.41914406,2059.0,2058.0,1.465]
[1772615040847,7.63338467,2058.9,2058.0,2.67974295]
[1772615041442,7.63338467,2058.9,2057.8,1.21484325]
[1772615041643,6.41914406,2058.7,2057.7,1.464]
[1772615041847,6.41914406,2058.7,2057.4,1.21607959]
[1772615041848,7.55125007,2058.7,2057.5,1.464]
[1772615042163,7.55125007,2058.7,2057.6,0.42850592]
[1772615042366,7.55125007,2058.7,2057.5,1.464]
[1772615042564,7.55125007,2058.7,2057.6,0.4284249]
[1772615042766,7.55125007,2058.7,2057.4,1.21607959]
[1772615042939,6.41914406,2058.5,2057.5,0.42840212]
[1772615043141,6.41914406,2058.5,2057.5,1.464]
[1772615043550,6.41914406,2058.5,2057.6,1.464]
[1772615043743,6.41914406,2058.5,2057.7,1.464]
[1772615044069,1.21418164,2059.0,2057.8,0.42797961]
[1772615044254,7.63331317,2059.1,2057.9,0.42788303]
[1772615044450,7.63331317,2059.1,2057.7,1.464]
[1772615044651,7.63331317,2059.1,2057.8,0.42799306]
[1772615044966,1.21416911,2059.1,2058.0,1.21477162]
[1772615045171,1.21416911,2059.1,2058.1,0.42788911]
[1772615045372,1.21416911,2059.1,2058.1,0.4278894]
[1772615045567,1.21416911,2059.1,2058.2,0.4278894]
[1772615045755,1.21416911,2059.1,2058.0,1.21477162]
[1772615045956,1.21416911,2059.1,2058.3,1.464]
[1772615047067,0.001,2059.2,2058.4,1.21453556]
[1772615047461,0.002,2059.0,2058.4,1.21453556]
[1772615047643,0.002,2059.0,2058.4,2.67753556]
[1772615048959,0.002,2059.0,2058.4,2.67257051]
[1772615049578,6.42114406,2059.0,2058.3,1.2145482]
[1772615049754,6.42114406,2059.0,2058.2,0.001]
[1772615050183,6.42114406,2059.0,2058.2,1.21564821]
[1772615050952,6.42114406,2059.0,2058.3,1.462]
[1772615051379,1.21424061,2058.9,2058.3,1.21459456]
[1772615051579,1.21424061,2058.9,2058.3,2.67659456]
[1772615051764,1.21424061,2058.9,2058.3,1.462]
[1772615052666,1.21424061,2058.9,2058.2,1.21562109]
[1772615052882,1.21424061,2058.9,2058.2,2.67762109]
[1772615053987,1.21424061,2058.9,2058.2,0.001]
[1772615054191,1.21424061,2058.9,2058.3,1.89134738]
[1772615054387,1.21424061,2058.9,2058.3,1.462]
[1772615054593,1.21424061,2058.9,2058.2,0.001]
[1772615054594,7.63338467,2058.9,2058.2,0.001]
[1772615054772,6.41914406,2058.8,2058.2,0.001]
[1772615055492,6.41914406,2058.6,2058.0,0.001]
[1772615055789,6.41914406,2058.3,2057.7,0.001]
[1772615055988,6.41914406,2058.1,2057.7,0.001]
[1772615056212,6.41914406,2058.1,2057.4,0.001]
[1772615056784,7.55125007,2058.1,2057.4,0.001]
[1772615056978,1.21465358,2058.2,2057.4,0.001]
[1772615057164,7.63379764,2058.2,2057.4,0.001]
[1772615061184,6.2977908,2058.0,2057.6,0.001]
[1772615061573,6.2977908,2058.0,2057.4,0.001]
[1772615061793,6.29444536,2057.7,2057.1,0.001]
[1772615062370,7.50945313,2057.6,2057.1,0.001]
[1772615063483,1.21500777,2057.6,2057.1,0.001]
[1772615063685,1.21488968,2057.8,2057.1,0.001]
[1772615063905,1.21483576,2057.9,2057.1,0.001]
[1772615064568,1.21471259,2058.1,2057.1,0.001]
[1772615065194,7.50915795,2058.1,2057.1,0.001]
[1772615065699,2.80246636,2058.1,2057.1,0.001]
[1772615065868,6.29444536,2057.6,2057.0,0.001]
[1772615066673,6.29444536,2057.4,2057.0,0.001]
[1772615066873,6.29444536,2057.4,2056.9,0.001]
[1772615068574,6.29444536,2057.4,2056.7,0.001]
[1772615068575,6.29444536,2057.1,2056.7,0.001]
[1772615068899,0.001,2056.7,2056.1,0.1585491]
[1772615069200,6.29544536,2056.7,2055.6,1.21616073]
[1772615069383,6.29544536,2056.7,2055.7,0.42857628]
[1772615069586,6.29544536,2056.7,2055.3,1.48157804]
[1772615069587,6.29444536,2056.0,2054.9,1.21656418]
[1772615069907,6.29444536,2056.0,2055.0,0.42885205]
[1772615070202,6.29444536,2056.0,2055.1,0.42885205]
[1772615070400,6.29444536,2056.4,2055.0,6.15216886]
[1772615070582,6.29444536,2056.4,2054.9,2.67156418]
[1772615070583,6.29444536,2056.4,2055.2,6.15216886]
[1772615070778,1.2157759,2056.3,2055.3,7.3685363]
[1772615071000,1.2157759,2056.3,2055.3,8.8245363]
[1772615071233,7.51022126,2056.3,2055.3,7.3685363]
[1772615071370,7.51022126,2056.3,2055.3,1.21636744]
[1772615071873,6.29444536,2056.6,2055.3,7.3685363]
[1772615072598,6.29444536,2056.6,2055.3,8.8245363]
[1772615072802,7.51010303,2056.5,2055.5,0.001]
[1772615076203,4.86187478,2056.9,2055.5,6.15316886]
[1772615076579,11.15632014,2056.9,2055.6,7.60616886]
[1772615076978,11.15536297,2057.3,2055.8,6.15216886]
[1772615077174,1.21524402,2057.2,2055.8,6.15216886]
[1772615077374,6.29444536,2057.1,2055.8,6.15216886]
[1772615078512,6.29444536,2057.5,2055.8,6.15216886]
[1772615078808,1.21512588,2057.4,2056.0,6.15216886]
[1772615079011,1.21512588,2057.4,2056.4,6.15216886]
[1772615079303,1.21512588,2057.4,2056.5,1.453]
[1772615079609,1.21512588,2057.4,2056.4,6.15216886]
[1772615079800,1.21492634,2057.8,2056.4,6.15216886]
[1772615080706,1.21492634,2057.8,2056.6,6.15216886]
[1772615080707,7.5093717,2057.8,2056.6,6.15216886]
[1772615081079,7.5093717,2057.8,2056.7,7.36770831]
[1772615081907,1.21677196,2058.0,2056.7,7.36770831]
[1772615082977,7.51121732,2058.0,2056.8,1.452]
[1772615083309,7.51121732,2058.0,2056.9,1.21542126]
[1772615084015,7.51121732,2058.0,2056.9,7.36759012]
[1772615084506,7.51121732,2058.0,2056.9,2.66642126]
[1772615084709,7.51121732,2058.0,2056.7,1.21553945]
[1772615084893,7.51121732,2058.0,2056.8,1.451]
[1772615085407,6.29444536,2057.9,2056.9,1.21542126]
[1772615085612,0.002,2057.8,2056.9,1.21542126]
[1772615085813,6.29444536,2057.7,2056.9,2.66642126]
[1772615086107,0.002,2057.8,2057.0,6.15216886]
[1772615086609,0.002,2057.8,2057.1,1.451]
[1772615087491,0.002,2057.8,2057.2,7.36741288]
[1772615087685,0.002,2058.0,2057.2,7.36741288]
[1772615089709,0.002,2058.2,2057.3,6.18708422]
[1772615089909,0.002,2058.2,2057.4,1.451]
[1772615090325,0.002,2058.2,2057.4,7.63808422]